fUST/lending_fUST_20240530
["ID","MTS","AMOUNT","RATE_DAILY","PERIOD"]
[328183933,1717020642736,-492.41727485,0.00020715,2]
[328183934,1717020642747,-173.721763,0.00021918,2]
[328183935,1717020642757,-2815.51096215,0.00022691,2]
[328184070,1717020752010,154.87609912,9.998e-05,2]
[328184071,1717021633171,-154.87609912,9.999e-05,2]
[328184072,1717021633191,-1900.31793063,9.999e-05,2]
[328184073,1717021633211,-1098.62540245,0.00015,2]
[328184074,1717021633231,-1137.98739382,0.00015395,2]
[328184075,1717021633255,-485.53452314,0.000189,2]
[328184076,1717021633275,-333.9504338,0.00018903,2]
[328184132,1717021833750,-768.51793347,0.00014279,2]
[328184134,1717021833760,-260.04165873,0.00018802,3]
[328184136,1717021833770,-150.0,0.000189,2]
[328184138,1717021833779,-2698.51263161,0.00018902,2]
[328184152,1717021833901,-7769.21746255,0.00018902,2]
[328184155,1717021833911,-459.54675454,0.00018903,2]
[328184157,1717021833920,-1728.13088088,0.00018903,2]
[328184159,1717021833929,-23866.73672999,0.0001904,2]
[328184161,1717021833941,-1033.26327001,0.0001904,2]
[328184163,1717021833950,-409.523491,0.00019098,2]
[328184165,1717021833959,-164.793741,0.00019178,2]
[328184167,1717021833968,-237.0734524,0.00019604,2]
[328184169,1717021833977,-187.63079617,0.0002,3]
[328184171,1717021833986,-1352.47027716,0.0002,2]
[328184173,1717021833996,-156.68308505,0.00020527,2]
[328184175,1717021834005,-156.87701235,0.00020527,2]
[328184177,1717021834016,-175.72514253,0.00020527,2]
[328184179,1717021834025,-1228.78699241,0.00020527,2]
[328184181,1717021834034,-176.7101551,0.00020527,2]
[328184183,1717021834043,-155.91427197,0.00020527,2]
[328184185,1717021834052,-568.89472083,0.00020528,2]
[328184187,1717021834062,-866.24014984,0.00021,2]
[328184189,1717021834071,-173.721763,0.00021918,2]
[328184191,1717021834080,-2636.40654372,0.0002221,2]
[328184193,1717021834092,-1593.37653575,0.0002221,2]
[328184195,1717021834101,-3830.86457503,0.00022691,2]
[328184342,1717021837938,-152.96178655,0.00022691,2]
[328184344,1717021837948,-461.41671968,0.00022691,2]
[328184346,1717021837957,-3605.23886047,0.00022697,2]
[328184348,1717021837968,-921.75839757,0.00022697,2]
[328184350,1717021837978,-943.50728599,0.00022795,2]
[328184352,1717021837987,-500.0,0.00022795,2]
[328184354,1717021837996,-490.0,0.00022795,2]
[328184356,1717021838005,-503.87083447,0.00022795,2]
[328184358,1717021838015,-424.86722773,0.00022795,2]
[328184360,1717021838024,-397.94484115,0.00022795,2]
[328184362,1717021838033,-490.0,0.00022795,2]
[328184364,1717021838042,-500.0,0.00022795,2]
[328184366,1717021838052,-501.24954763,0.00022795,2]
[328184368,1717021838061,-500.0,0.00022795,2]
[328184370,1717021838070,-500.0,0.00022795,2]
[328184372,1717021838079,-500.0,0.00022795,2]
[328184374,1717021838089,-500.0,0.00022795,2]
[328184376,1717021838098,-164.23212362,0.00022795,2]
[328184378,1717021838107,-500.0,0.00022795,2]
[328184380,1717021838116,-500.0,0.00022795,2]
[328184382,1717021838126,-500.0,0.00022795,2]
[328184384,1717021838135,-500.0,0.00022795,2]
[328184386,1717021838144,-249.89107061,0.00022795,2]
[328184388,1717021838153,-500.0,0.00022795,2]
[328184390,1717021838163,-500.0,0.00022795,2]
[328184391,1717021838172,-500.0,0.00022795,2]
[328184393,1717021838182,-500.0,0.00022795,2]
[328184395,1717021838191,-500.0,0.00022795,2]
[328184397,1717021838202,-500.0,0.00022795,2]
[328184399,1717021838212,-500.0,0.00022795,2]
[328184400,1717021838222,-500.0,0.00022795,2]
[328184402,1717021838231,-500.0,0.00022795,2]
[328184403,1717021838241,-500.0,0.00022795,2]
[328184404,1717021838250,-500.0,0.00022795,2]
[328184405,1717021838259,-500.0,0.00022795,2]
[328184406,1717021838270,-500.0,0.00022795,2]
[328184407,1717021838280,-500.0,0.00022795,2]
[328184408,1717021838290,-500.0,0.00022795,2]
[328184409,1717021838299,-500.0,0.00022795,2]
[328184410,1717021838309,-500.0,0.00022795,2]
[328184411,1717021838322,-500.0,0.00022795,2]
[328184412,1717021838332,-151.0,0.00022796,2]
[328184413,1717021838341,-154.96897834,0.00022797,2]
[328184414,1717021838350,-151.0,0.00022798,2]
[328184415,1717021838362,-151.0,0.00022798,2]
[328184416,1717021838372,-703.25759255,0.00022798,2]
[328184417,1717021838381,-309.3027705,0.00022798,2]
[328184418,1717021838393,-1309.07448257,0.00022798,2]
[328184419,1717021838403,-156.27476439,0.00022798,2]
[328184420,1717021838412,-155.06430892,0.00022798,2]
[328184421,1717021838422,-181.7889805,0.00022798,2]
[328184535,1717022237632,505.46797421,0.000338,120]
[328184536,1717022297888,178.57392233,0.00035616,120]
[328184537,1717022481711,220.74062431,0.00033221,120]
[328184539,1717022667140,220.74,0.00033221,120]
[328184540,1717022667162,220.74,0.00033221,120]
[328184541,1717022667183,220.74,0.00033221,120]
[328184542,1717022667204,31.9589026,0.00033221,120]
[328184543,1717022715227,154.87609912,9.998e-05,2]
[328184544,1717022728799,207.92947824,9.998e-05,2]
[328184545,1717022769815,921.85323911,9.998e-05,2]
[328184548,1717022840106,-179.19540084,9.999e-05,2]
[328184549,1717022840127,-274.99910967,0.000165,2]
[328184550,1717022840147,-896.90941239,0.00019846,2]
[328184551,1717022840166,-154.87609912,0.00019847,2]
[328184552,1717022840190,-524.66216611,0.00019849,2]
[328184553,1717022840209,-154.8915759,0.00019849,2]
[328184554,1717022840228,-241.21325634,0.00019849,2]
[328184555,1717022840247,-507.99057094,0.00019849,2]
[328184556,1717022840265,-1098.62540245,0.0001985,2]
[328184557,1717022840285,-332.32164331,0.0001985,2]
[328184558,1717022840304,-944.07185449,0.0001985,2]
[328184559,1717022840325,-3866.77255938,0.00019851,2]
[328184810,1717023038281,-154.87609912,0.00019849,2]
[328184812,1717023038291,-274.14498655,0.00019849,2]
[328184814,1717023038300,-154.90705577,0.00019849,2]
[328184815,1717023038310,-176.31709247,0.0001985,2]
[328184816,1717023038319,-161.11263366,0.0001985,2]
[328184817,1717023038329,-9521.14280713,0.00019851,2]
[328184964,1717023261263,154.87609912,9.998e-05,2]
[328184965,1717023270055,154.87609912,9.998e-05,2]
[328184966,1717023312861,154.87609912,9.998e-05,2]
[328184967,1717023812695,3635.75697884,9.998e-05,2]
[328184968,1717023826620,3635.75697884,9.998e-05,2]
[328184969,1717023850358,522.0982881,9.998e-05,2]
[328184970,1717023875161,154.87609912,9.998e-05,2]
[328184971,1717024038115,-154.87609912,9.999e-05,2]
[328184972,1717024038138,-1137.98739382,0.00014122,2]
[328184973,1717024038164,-1098.62540245,0.00016879,2]
[328184974,1717024038187,-6683.44227012,0.0001688,2]
[328185024,1717024232633,-154.87609912,0.00016879,2]
[328185026,1717024232644,-3036.06688058,0.0001688,2]
[328185028,1717024232655,-1349.2239,0.00017597,2]
[328185030,1717024232664,-922.4720001,0.00017888,2]
[328185032,1717024232674,-10141.96897635,0.00017898,2]
[328185034,1717024232683,-2033.20251904,0.00018829,2]
[328185035,1717024232693,-944.07185449,0.00018829,2]
[328185037,1717024232702,-1098.62540245,0.00018829,2]
[328185039,1717024232711,-412.50131416,0.00018829,2]
[328185041,1717024232721,-155.01543962,0.0001883,2]
[328185043,1717024232730,-24900.0,0.00018831,2]
[328185045,1717024232739,-408.13040654,0.000189,2]
[328185047,1717024232748,-726.6795054,0.00018981,2]
[328185049,1717024232757,-173.994813,0.00019485,2]
[328185051,1717024232766,-4229.78307947,0.000195,2]
[328185053,1717024232775,-228.3491945,0.00019849,2]
[328185055,1717024232784,-175.80560738,0.00019849,2]
[328185057,1717024232793,-187.29533454,0.0001985,2]
[328185059,1717024232802,-547.78425343,0.0002,2]
[328185061,1717024232812,-154.89163776,0.00020346,2]
[328185063,1717024232822,-154.90710217,0.00020346,2]
[328185065,1717024232831,-155.07741483,0.00020347,2]
[328185067,1717024232840,-1830.67118392,0.00020347,2]
[328185069,1717024232849,-457.61040787,0.00021,2]
[328185071,1717024232859,-2069.03664064,0.00021,2]
[328185073,1717024232868,-165.630197,0.00021209,2]
[328185075,1717024232877,-290.81246165,0.000213,2]
[328185077,1717024232886,-181.5967108,0.000213,2]
[328185079,1717024232895,-1044.09073715,0.000213,2]
[328185081,1717024232905,-187.42283178,0.00021301,2]
[328185083,1717024232914,-168.43044,0.00021918,2]
[328185085,1717024232923,-150.54692304,0.0002257,2]
[328185087,1717024232932,-3667.3975075,0.00022686,2]
[328185088,1717024232941,-282.0,0.000227,2]
[328185090,1717024232950,-168.43044,0.00022773,2]
[328185092,1717024232959,-151.0,0.00022785,2]
[328185094,1717024232971,-180.980326,0.00022785,2]
[328185097,1717024232980,-16303.36077309,0.00022794,2]
[328185356,1717024238706,-215.94464334,0.00022784,2]
[328185357,1717024238716,-498.95662441,0.00022784,2]
[328185358,1717024238725,-500.0,0.00022784,2]
[328185359,1717024238734,-500.0,0.00022784,2]
[328185360,1717024238743,-482.43873225,0.00022784,2]
[328185366,1717024242239,-17.56126775,0.00022784,2]
[328185368,1717024242249,-174.96732118,0.00022784,2]
[328185369,1717024242259,-500.0,0.00022784,2]
[328185370,1717024242268,-336.14310937,0.00022784,2]
[328185371,1717024242278,-500.0,0.00022784,2]
[328185372,1717024242287,-500.0,0.00022784,2]
[328185373,1717024242296,-500.0,0.00022784,2]
[328185374,1717024242305,-500.0,0.00022784,2]
[328185375,1717024242314,-500.0,0.00022784,2]
[328185376,1717024242324,-500.0,0.00022784,2]
[328185377,1717024242334,-500.0,0.00022784,2]
[328185378,1717024242343,-500.0,0.00022784,2]
[328185379,1717024242352,-500.0,0.00022784,2]
[328185380,1717024242362,-500.0,0.00022784,2]
[328185382,1717024242371,-500.0,0.00022784,2]
[328185384,1717024242380,-240.83622592,0.00022784,2]
[328185439,1717024246863,-272.0869377,0.00020694,2]
[328185440,1717024246873,-2069.03664064,0.00021,2]
[328185441,1717024246882,-121.12503008,0.00022784,2]
[328185442,1717024246897,-138.038744,0.00022784,2]
[328185443,1717024246906,-500.0,0.00022784,2]
[328185444,1717024246916,-500.0,0.00022784,2]
[328185445,1717024246925,-500.0,0.00022784,2]
[328185446,1717024246934,-500.0,0.00022784,2]
[328185447,1717024246943,-500.0,0.00022784,2]
[328185448,1717024246953,-500.0,0.00022784,2]
[328185449,1717024246962,-500.0,0.00022784,2]
[328185450,1717024246972,-500.0,0.00022784,2]
[328185451,1717024246982,-413.49600193,0.00022784,2]
[328185452,1717024246991,-500.0,0.00022784,2]
[328185453,1717024247001,-13383.81733278,0.00022794,2]
[328185454,1717024247011,-120.58342499,0.00022798,2]
[328185455,1717024247020,-194.83792219,0.00022798,2]
[328185456,1717024247029,-155.351212,0.00022798,2]
[328185457,1717024247039,-1155.86319119,0.00022798,2]
[328185458,1717024247048,-282.30173683,0.00022798,2]
[328185459,1717024247058,-911.17928099,0.00022798,2]
[328185460,1717024247068,-190.14627615,0.00022798,2]
[328185461,1717024247078,-301.72301819,0.00022798,2]
[328185462,1717024247087,-328.36363781,0.00022798,2]
[328185463,1717024247097,-155.40462978,0.00022798,2]
[328185464,1717024247107,-2509.92325516,0.00022799,2]
[328185465,1717024247118,-263.67559899,0.00022804,2]
[328185466,1717024247128,-1313.29607384,0.00022804,2]
[328185467,1717024247138,-1064.02302713,0.00022805,2]
[328185468,1717024247148,-154.922514,0.00022806,2]
[328185469,1717024247158,-2774.66013548,0.00022806,2]
[328185470,1717024247167,-189.66516889,0.00022806,2]
[328185471,1717024247178,-1871.01679575,0.00022806,2]
[328185472,1717024247190,-173.21337903,0.00022806,2]
[328185473,1717024247199,-3065.55842789,0.00022806,2]
[328185474,1717024247208,-395.54281002,0.00022806,2]
[328185475,1717024247219,-227.59435625,0.00022806,2]
[328185476,1717024247229,-381.56655214,0.00022806,2]
[328185477,1717024247238,-113.51434662,0.00022806,2]
[328185478,1717024303274,488.60997064,9.998e-05,2]
[328185479,1717024348329,1044.69294597,9.998e-05,2]
[328185480,1717024387979,224.98916608,9.998e-05,2]
[328185481,1717024411436,155.36790834,9.998e-05,2]
[328185482,1717024658715,1232.66918186,9.998e-05,2]
[328185486,1717025102600,188.7810974,0.00033221,120]
[328185487,1717025102620,220.74,0.00033221,120]
[328185488,1717025110582,220.74062431,0.000332,120]
[328185489,1717025154718,1900.31793063,9.998e-05,2]
[328185490,1717025211152,100.70133863,9.899e-05,2]
[328185491,1717025233275,1650.0,0.00028,120]
[328185492,1717025238166,-371.81130833,9.898e-05,2]
[328185493,1717025238187,-233.24909517,9.899e-05,2]
[328185494,1717025238207,-4506.23137946,9.999e-05,2]
[328185499,1717025365097,-3398.11943184,9.999e-05,2]
[328185500,1717025365121,-548.66383347,0.0001,2]
[328185520,1717025431958,-589.32356035,0.0001,2]
[328185522,1717025431967,-156.8699674,0.0001688,2]
[328185524,1717025431977,-674.61195,0.00018729,2]
[328185526,1717025431986,-1098.62540245,0.00019422,2]
[328185528,1717025431996,-392.53165892,0.00019422,2]
[328185530,1717025432005,-162.49515588,0.00019423,2]
[328185532,1717025432014,-1267.90323148,0.00019423,2]
[328185533,1717025432023,-3855.54409164,0.00019424,2]
[328185544,1717025432143,-351.323325,0.00019424,2]
[328185579,1717025437995,-20693.13258336,0.00019424,2]
[328185580,1717025438005,-3152.3561543,0.00019851,2]
[328185582,1717025438015,-9089.81949263,0.00020462,2]
[328185584,1717025438024,-165.308995,0.00020463,2]
[328185586,1717025438034,-2069.03664064,0.00021,2]
[328185588,1717025438043,-161.10504828,0.00021676,2]
[328185590,1717025438055,-223.43080704,0.00021676,2]
[328185592,1717025438065,-156.5200847,0.00021676,2]
[328185594,1717025438074,-182.69546518,0.00021676,2]
[328185596,1717025438084,-155.34816039,0.00021676,2]
[328185597,1717025438093,-190.01119461,0.00021676,2]
[328185600,1717025438111,-274.85373023,0.00021676,2]
[328185602,1717025438125,-174.56195583,0.00021676,2]
[328185604,1717025438135,-2988.47227797,0.00021676,2]
[328185606,1717025438145,-1358.08324488,0.00021676,2]
[328185608,1717025438155,-155.31351437,0.00021676,2]
[328185610,1717025438164,-1040.26690632,0.00021676,2]
[328185612,1717025438174,-2627.97975915,0.00021676,2]
[328185614,1717025438184,-200.91723481,0.00021676,2]
[328185616,1717025438193,-230.77420148,0.00021676,2]
[328185618,1717025438203,-154.984582,0.00021676,2]
[328185620,1717025438213,-239.12476103,0.00021676,2]
[328185622,1717025438222,-999.60015994,0.00021677,2]
[328185624,1717025438232,-211.24404301,0.00021677,2]
[328185626,1717025438241,-202.38161062,0.00021677,2]
[328185628,1717025438251,-260.86363855,0.00021677,2]
[328185630,1717025438261,-168.43044,0.00021918,2]
[328185632,1717025438270,-150.54692304,0.00022577,2]
[328185634,1717025438280,-4229.78307947,0.00022621,2]
[328185636,1717025438290,-2968.42901871,0.00022676,2]
[328185638,1717025438299,-239.4858,0.00022692,2]
[328185640,1717025438309,-492.08438752,0.00022774,2]
[328185642,1717025438318,-651.24851089,0.00022774,2]
[328185644,1717025438327,-500.0,0.00022774,2]
[328185646,1717025438337,-308.49234763,0.00022774,2]
[328185647,1717025438347,-583.09791052,0.00022774,2]
[328185649,1717025438356,-160.16172627,0.00022774,2]
[328185651,1717025438366,-583.09791052,0.00022774,2]
[328185653,1717025438377,-583.09791052,0.00022774,2]
[328185655,1717025438386,-583.09791052,0.00022774,2]
[328185657,1717025438395,-583.09791052,0.00022774,2]
[328185659,1717025438405,-583.09791052,0.00022774,2]
[328185661,1717025438415,-583.09791052,0.00022774,2]
[328185663,1717025438424,-583.09791052,0.00022774,2]
[328185665,1717025438434,-583.09791052,0.00022774,2]
[328185667,1717025438443,-583.09791052,0.00022774,2]
[328185669,1717025438453,-583.09791052,0.00022774,2]
[328185671,1717025438463,-583.09791052,0.00022774,2]
[328185673,1717025438472,-583.09791052,0.00022774,2]
[328185675,1717025438482,-583.09791052,0.00022774,2]
[328185677,1717025438492,-583.09791052,0.00022774,2]
[328185679,1717025438502,-583.09791052,0.00022774,2]
[328185681,1717025438512,-583.09791052,0.00022774,2]
[328185683,1717025438521,-583.09791052,0.00022774,2]
[328185685,1717025438531,-583.09791052,0.00022774,2]
[328185687,1717025438540,-583.09791052,0.00022774,2]
[328185689,1717025438553,-583.09791052,0.00022774,2]
[328185691,1717025438562,-583.09791052,0.00022774,2]
[328185693,1717025438572,-583.09791052,0.00022774,2]
[328185695,1717025438582,-583.09791052,0.00022774,2]
[328185697,1717025438591,-583.09791052,0.00022774,2]
[328185699,1717025438602,-151.0,0.00022775,2]
[328185709,1717025438765,-151.0,0.00022775,2]
[328185710,1717025438777,-151.0,0.00022775,2]
[328185711,1717025438788,-151.0,0.00022775,2]
[328185712,1717025438800,-215.289862,0.00022775,2]
[328185713,1717025438810,-151.0,0.00022775,2]
[328185714,1717025438821,-1018.072048,0.00022775,2]
[328185715,1717025438832,-1018.072048,0.00022775,2]
[328185716,1717025438842,-1018.072048,0.00022775,2]
[328185717,1717025438853,-1018.072048,0.00022775,2]
[328185718,1717025438863,-151.0,0.00022775,2]
[328185719,1717025438877,-151.0,0.00022775,2]
[328185720,1717025438887,-263.385161,0.00022775,2]
[328185721,1717025438897,-151.0,0.00022775,2]
[328185722,1717025438913,-151.0,0.00022775,2]
[328185723,1717025438924,-151.0,0.00022775,2]
[328185724,1717025438935,-151.0,0.00022775,2]
[328185725,1717025438946,-151.0,0.00022775,2]
[328185726,1717025438956,-151.0,0.00022775,2]
[328185727,1717025438967,-151.0,0.00022775,2]
[328185728,1717025438977,-151.0,0.00022775,2]
[328185729,1717025438987,-151.0,0.00022775,2]
[328185730,1717025438998,-151.0,0.00022775,2]
[328185731,1717025439008,-151.0,0.00022775,2]
[328185732,1717025439019,-151.0,0.00022775,2]
[328185733,1717025439029,-968.773292,0.00022776,2]
[328185734,1717025439040,-968.773292,0.00022776,2]
[328185735,1717025439050,-968.773292,0.00022776,2]
[328185736,1717025439062,-968.773292,0.00022776,2]
[328185737,1717025439073,-968.773292,0.00022776,2]
[328185738,1717025439084,-968.773292,0.00022776,2]
[328185739,1717025439095,-151.0,0.00022776,2]
[328185740,1717025439106,-233.635612,0.00022776,2]
[328185741,1717025439116,-373.384991,0.00022776,2]
[328185742,1717025439135,-373.384991,0.00022776,2]
[328185743,1717025439145,-373.384991,0.00022776,2]
[328185744,1717025439155,-373.384991,0.00022776,2]
[328185745,1717025439165,-373.384991,0.00022776,2]
[328185746,1717025439175,-373.384991,0.00022776,2]
[328185747,1717025439185,-373.384991,0.00022776,2]
[328185748,1717025439195,-373.384991,0.00022776,2]
[328185749,1717025439204,-151.0,0.00022776,2]
[328185750,1717025439214,-151.0,0.00022776,2]
[328185751,1717025439223,-1018.072048,0.00022776,2]
[328185752,1717025439233,-1018.072048,0.00022776,2]
[328185753,1717025439243,-151.0,0.00022776,2]
[328185754,1717025439253,-187.859376,0.00022776,2]
[328185755,1717025439264,-151.0,0.00022776,2]
[328185756,1717025439274,-151.0,0.00022776,2]
[328185757,1717025439284,-151.0,0.00022776,2]
[328185758,1717025439294,-151.0,0.00022777,2]
[328185759,1717025439304,-151.0,0.00022777,2]
[328185760,1717025439314,-482.19367,0.00022777,2]
[328185761,1717025439324,-482.19367,0.00022777,2]
[328185762,1717025439335,-482.19367,0.00022777,2]
[328185763,1717025439345,-482.19367,0.00022777,2]
[328185764,1717025439355,-151.0,0.00022777,2]
[328185765,1717025439365,-151.0,0.00022777,2]
[328185766,1717025439379,-151.0,0.00022777,2]
[328185767,1717025439389,-151.0,0.00022777,2]
[328185768,1717025439399,-151.0,0.00022777,2]
[328185769,1717025439408,-151.0,0.00022777,2]
[328185770,1717025439418,-151.0,0.00022777,2]
[328185771,1717025439428,-256.675967,0.00022777,2]
[328185772,1717025439438,-204.681774,0.00022777,2]
[328185773,1717025439447,-204.681774,0.00022777,2]
[328185774,1717025439457,-204.681774,0.00022777,2]
[328185775,1717025439467,-204.681774,0.00022777,2]
[328185776,1717025439477,-204.681774,0.00022777,2]
[328185777,1717025439487,-204.681774,0.00022777,2]
[328185778,1717025439496,-151.0,0.00022777,2]
[328185779,1717025439506,-151.0,0.00022777,2]
[328185780,1717025439516,-1018.072048,0.00022777,2]
[328185781,1717025439526,-1018.072048,0.00022777,2]
[328185782,1717025439535,-151.0,0.00022777,2]
[328185783,1717025439546,-151.0,0.00022777,2]
[328185784,1717025439559,-151.0,0.00022777,2]
[328185785,1717025439568,-151.0,0.00022777,2]
[328185786,1717025439578,-156.199736,0.00022778,2]
[328185787,1717025439587,-156.199736,0.00022778,2]
[328185788,1717025439599,-156.199736,0.00022778,2]
[328185789,1717025439609,-156.199736,0.00022778,2]
[328185790,1717025439618,-151.0,0.00022778,2]
[328185791,1717025439633,-151.0,0.00022778,2]
[328185792,1717025439643,-151.0,0.00022778,2]
[328185793,1717025439654,-263.70942,0.00022778,2]
[328185794,1717025439663,-151.0,0.00022778,2]
[328185795,1717025439673,-151.0,0.00022778,2]
[328185796,1717025439683,-151.0,0.00022778,2]
[328185797,1717025439692,-151.0,0.00022778,2]
[328185798,1717025439702,-151.0,0.00022778,2]
[328185799,1717025439712,-204.681774,0.00022778,2]
[328185800,1717025439722,-204.681774,0.00022778,2]
[328185801,1717025439731,-968.773292,0.00022778,2]
[328185802,1717025439742,-968.773292,0.00022778,2]
[328185803,1717025439752,-373.384991,0.00022778,2]
[328185804,1717025439762,-373.384991,0.00022778,2]
[328185805,1717025439772,-151.0,0.00022779,2]
[328185806,1717025439782,-151.0,0.00022779,2]
[328185807,1717025439792,-151.0,0.00022779,2]
[328185808,1717025439803,-151.0,0.00022779,2]
[328185809,1717025439813,-156.199736,0.00022779,2]
[328185810,1717025439823,-156.199736,0.00022779,2]
[328185811,1717025439833,-151.0,0.00022779,2]
[328185812,1717025439843,-151.0,0.00022779,2]
[328185813,1717025439852,-482.19367,0.00022779,2]
[328185814,1717025439862,-482.19367,0.00022779,2]
[328185815,1717025439873,-151.0,0.00022779,2]
[328185816,1717025439884,-151.0,0.00022779,2]
[328185817,1717025439894,-204.681774,0.00022779,2]
[328185818,1717025439904,-204.681774,0.00022779,2]
[328185819,1717025439913,-151.0,0.00022779,2]
[328185820,1717025439923,-218.829174,0.00022779,2]
[328185821,1717025439933,-1018.072048,0.00022779,2]
[328185822,1717025439943,-1018.072048,0.00022779,2]
[328185823,1717025439953,-151.0,0.00022779,2]
[328185824,1717025439962,-151.0,0.0002278,2]
[328185825,1717025439973,-151.0,0.0002278,2]
[328185826,1717025439982,-151.0,0.0002278,2]
[328185827,1717025439993,-151.0,0.0002278,2]
[328185828,1717025440003,-151.0,0.0002278,2]
[328185829,1717025440013,-968.773292,0.0002278,2]
[328185830,1717025440022,-968.773292,0.0002278,2]
[328185831,1717025440032,-373.384991,0.0002278,2]
[328185832,1717025440043,-373.384991,0.0002278,2]
[328185833,1717025440052,-151.0,0.0002278,2]
[328185834,1717025440062,-151.0,0.0002278,2]
[328185835,1717025440072,-151.0,0.0002278,2]
[328185836,1717025440082,-156.199736,0.00022781,2]
[328185837,1717025440098,-156.199736,0.00022781,2]
[328185838,1717025440108,-151.0,0.00022781,2]
[328185839,1717025440119,-482.19367,0.00022781,2]
[328185840,1717025440131,-482.19367,0.00022781,2]
[328185841,1717025440141,-296.963592,0.00022781,2]
[328185842,1717025440152,-151.0,0.00022781,2]
[328185843,1717025440162,-204.681774,0.00022781,2]
[328185844,1717025440172,-204.681774,0.00022781,2]
[328185845,1717025440182,-151.0,0.00022781,2]
[328185846,1717025440192,-1018.072048,0.00022781,2]
[328185847,1717025440202,-1018.072048,0.00022781,2]
[328185848,1717025440212,-151.0,0.00022781,2]
[328185849,1717025440222,-215.5033002,0.00022782,2]
[328185850,1717025440232,-195.45005298,0.00022782,2]
[328185851,1717025440241,-260.73045922,0.00022782,2]
[328185852,1717025440251,-151.0,0.00022782,2]
[328185853,1717025440261,-151.0,0.00022782,2]
[328185854,1717025440271,-151.0,0.00022782,2]
[328185855,1717025440281,-968.773292,0.00022782,2]
[328185856,1717025440290,-968.773292,0.00022782,2]
[328185857,1717025440300,-373.384991,0.00022782,2]
[328185858,1717025440309,-373.384991,0.00022782,2]
[328185859,1717025440319,-209.15136073,0.00022783,2]
[328185860,1717025440329,-156.199736,0.00022783,2]
[328185861,1717025440339,-156.199736,0.00022783,2]
[328185862,1717025440349,-282.0,0.000228,2]
[328185863,1717025440359,-223.901305,0.000228,2]
[328185864,1717025440368,-482.19367,0.000228,2]
[328185865,1717025440380,-482.19367,0.000228,2]
[328185866,1717025440391,-151.0,0.00022806,2]
[328185867,1717025440401,-151.0,0.00022806,2]
[328185868,1717025440411,-156.199736,0.00022806,2]
[328185869,1717025440421,-156.199736,0.00022806,2]
[328185870,1717025440431,-156.199736,0.00022806,2]
[328185871,1717025440441,-156.199736,0.00022806,2]
[328185872,1717025440450,-151.0,0.00022806,2]
[328185873,1717025440460,-482.19367,0.00022806,2]
[328185874,1717025440470,-482.19367,0.00022806,2]
[328185875,1717025440479,-151.0,0.00022806,2]
[328185876,1717025440489,-151.0,0.00022806,2]
[328185877,1717025440498,-151.0,0.00022806,2]
[328185878,1717025440508,-204.681774,0.00022806,2]
[328185879,1717025440517,-204.681774,0.00022806,2]
[328185880,1717025440527,-204.681774,0.00022806,2]
[328185881,1717025440537,-204.681774,0.00022806,2]
[328185882,1717025440547,-204.681774,0.00022806,2]
[328185884,1717025440560,-204.681774,0.00022806,2]
[328185887,1717025440569,-968.773292,0.00022806,2]
[328185888,1717025440579,-968.773292,0.00022806,2]
[328185890,1717025440589,-968.773292,0.00022806,2]
[328185892,1717025440599,-968.773292,0.00022806,2]
[328185893,1717025440609,-373.384991,0.00022806,2]
[328185894,1717025440619,-373.384991,0.00022806,2]
[328185895,1717025440631,-373.384991,0.00022806,2]
[328185897,1717025440642,-373.384991,0.00022806,2]
[328185899,1717025440652,-151.0,0.00022806,2]
[328185901,1717025440662,-151.0,0.00022806,2]
[328185903,1717025440672,-1018.072048,0.00022806,2]
[328185904,1717025440682,-1018.072048,0.00022806,2]
[328185905,1717025440691,-1018.072048,0.00022806,2]
[328185906,1717025440700,-1018.072048,0.00022806,2]